fUST/lending_fUST_20241007
["ID","MTS","AMOUNT","RATE_DAILY","PERIOD"]
[339975108,1728245490576,-3000.0,0.0001617,2]
[339975109,1728245490587,-3000.0,0.0001618,2]
[339975110,1728245490600,-1287.0,0.00016187,17]
[339975111,1728245490612,-3000.0,0.0001619,2]
[339975112,1728245490623,-600.50812253,0.00016199,2]
[339975113,1728245490634,-3000.0,0.000162,2]
[339975114,1728245490646,-3000.0,0.0001621,2]
[339975115,1728245490656,-3000.0,0.0001622,2]
[339975116,1728245490667,-3000.0,0.0001623,2]
[339975117,1728245490678,-3000.0,0.0001624,2]
[339975118,1728245490689,-3000.0,0.0001625,2]
[339975119,1728245490700,-3000.0,0.0001626,2]
[339975120,1728245490711,-3000.0,0.0001627,2]
[339975121,1728245490722,-3000.0,0.0001628,2]
[339975122,1728245490732,-615.00442389,0.00016284,2]
[339975123,1728245490743,-2000.0,0.00016284,2]
[339975124,1728245490754,-2000.5501792,0.00016284,2]
[339975125,1728245490766,-2000.0,0.00016288,2]
[339975126,1728245490776,-3000.0,0.0001629,2]
[339975127,1728245490787,-2019.01209448,0.00016291,2]
[339975128,1728245490799,-2000.0,0.00016291,2]
[339975129,1728245490810,-3000.0,0.000163,2]
[339975130,1728245490820,-3000.0,0.0001631,2]
[339975131,1728245490830,-3000.0,0.0001632,2]
[339975132,1728245490840,-3000.0,0.0001633,2]
[339975133,1728245490851,-3000.0,0.0001634,2]
[339975134,1728245490861,-3000.0,0.0001635,2]
[339975135,1728245490871,-3000.0,0.0001636,2]
[339975136,1728245490884,-3000.0,0.0001637,2]
[339975137,1728245490894,-3000.0,0.0001638,2]
[339975138,1728245490904,-3000.0,0.0001639,2]
[339975139,1728245490914,-3000.0,0.000164,2]
[339975140,1728245490925,-3000.0,0.0001641,2]
[339975141,1728245490935,-3000.0,0.0001642,2]
[339975142,1728245490946,-2500.0,0.00016421,2]
[339975143,1728245490956,-2500.0,0.00016425,2]
[339975144,1728245490968,-2500.0,0.00016427,2]
[339975145,1728245490979,-3000.0,0.0001643,2]
[339975146,1728245490990,-461.0,0.00016438,2]
[339975147,1728245491001,-811.88,0.00016438,2]
[339975148,1728245491013,-500.0,0.00016438,2]
[339975149,1728245491023,-321.9159,0.00016438,2]
[339975150,1728245491034,-321.9159,0.00016438,2]
[339975151,1728245491046,-538.21,0.00016438,2]
[339975152,1728245491056,-500.0,0.00016438,2]
[339975153,1728245491068,-500.0,0.00016438,2]
[339975154,1728245491080,-500.0,0.00016438,2]
[339975155,1728245491091,-690.31,0.00016438,2]
[339975156,1728245491107,-429.50662052,0.00016438,2]
[339975157,1728245491118,-753.75,0.00016438,2]
[339975158,1728245491130,-500.0,0.00016438,2]
[339975159,1728245491141,-500.0,0.00016438,2]
[339975160,1728245491151,-560.51,0.00016438,2]
[339975161,1728245491166,-500.0,0.00016438,2]
[339975162,1728245491176,-693.21,0.00016438,2]
[339975163,1728245491186,-750.67,0.00016438,2]
[339975164,1728245491196,-500.0,0.00016438,2]
[339975165,1728245491207,-500.0,0.00016438,2]
[339975166,1728245491217,-500.0,0.00016438,2]
[339975167,1728245491227,-500.0,0.00016438,2]
[339975168,1728245491239,-500.0,0.00016438,2]
[339975169,1728245491249,-624.79,0.00016438,2]
[339975170,1728245491261,-500.0,0.00016438,2]
[339975171,1728245491271,-500.0,0.00016438,2]
[339975172,1728245491281,-500.0,0.00016438,2]
[339975173,1728245491293,-500.0,0.00016438,2]
[339975174,1728245491302,-500.0,0.00016438,2]
[339975175,1728245491314,-294.40782703,0.00016438,2]
[339975176,1728245491324,-500.0,0.00016438,2]
[339975177,1728245491336,-500.0,0.00016438,2]
[339975178,1728245491459,-500.0,0.00016438,2]
[339975179,1728245491471,-474.40637951,0.00016438,2]
[339975180,1728245491481,-500.0,0.00016438,2]
[339975181,1728245491492,-621.15,0.00016438,2]
[339975182,1728245491502,-573.68,0.00016438,2]
[339975183,1728245491513,-500.0,0.00016438,2]
[339975184,1728245491523,-500.0,0.00016438,2]
[339975185,1728245491534,-500.0,0.00016438,2]
[339975186,1728245491545,-500.0,0.00016438,2]
[339975187,1728245491555,-566.65,0.00016438,2]
[339975188,1728245491567,-151.0,0.00016438,2]
[339975189,1728245491578,-500.0,0.00016438,2]
[339975190,1728245491591,-1154.19,0.00016438,2]
[339975191,1728245491603,-500.0,0.00016438,2]
[339975192,1728245491613,-511.18,0.00016438,2]
[339975193,1728245491625,-1179.38,0.00016438,2]
[339975194,1728245491636,-751.93,0.00016438,2]
[339975195,1728245491648,-500.0,0.00016438,2]
[339975196,1728245491659,-500.0,0.00016438,2]
[339975197,1728245491670,-151.0,0.00016438,2]
[339975198,1728245491680,-500.0,0.00016438,2]
[339975199,1728245491692,-500.0,0.00016438,2]
[339975200,1728245491702,-734.54,0.00016438,2]
[339975201,1728245491712,-244.100492,0.00016438,2]
[339975202,1728245491723,-151.0,0.00016438,2]
[339975203,1728245491733,-460.53444585,0.00016438,2]
[339975204,1728245491742,-500.0,0.00016438,2]
[339975205,1728245491753,-244.100492,0.00016438,2]
[339975206,1728245491764,-1105.529882,0.00016438,2]
[339975207,1728245491774,-500.0,0.00016438,2]
[339975208,1728245491785,-500.0,0.00016438,2]
[339975209,1728245491797,-1105.529882,0.00016438,2]
[339975210,1728245491808,-500.0,0.00016438,2]
[339975211,1728245491817,-500.0,0.00016438,2]
[339975212,1728245491827,-782.03,0.00016438,2]
[339975213,1728245491837,-500.0,0.00016438,2]
[339975214,1728245491847,-500.0,0.00016438,2]
[339975215,1728245491857,-500.0,0.00016438,2]
[339975216,1728245491867,-600.57,0.00016438,2]
[339975217,1728245491877,-1034.12,0.00016438,2]
[339975218,1728245491887,-500.0,0.00016438,2]
[339975219,1728245491896,-500.0,0.00016438,2]
[339975220,1728245491905,-500.0,0.00016438,2]
[339975221,1728245491916,-500.0,0.00016438,2]
[339975222,1728245491926,-500.0,0.00016438,2]
[339975223,1728245491935,-500.0,0.00016438,2]
[339975224,1728245491944,-151.0,0.00016438,2]
[339975225,1728245491953,-500.0,0.00016438,2]
[339975226,1728245491963,-567.02,0.00016438,2]
[339975227,1728245491973,-547.51,0.00016438,2]
[339975228,1728245491983,-620.41,0.00016438,2]
[339975229,1728245491992,-500.0,0.00016438,2]
[339975230,1728245492002,-500.0,0.00016438,2]
[339975231,1728245492013,-622.64,0.00016438,2]
[339975232,1728245492023,-500.0,0.00016438,2]
[339975233,1728245492033,-1766.09,0.00016438,2]
[339975234,1728245492045,-336.72,0.00016438,2]
[339975235,1728245492055,-336.72,0.00016438,2]
[339975236,1728245492067,-336.72,0.00016438,2]
[339975237,1728245492078,-336.72,0.00016438,2]
[339975238,1728245492089,-336.72,0.00016438,2]
[339975239,1728245492101,-336.72,0.00016438,2]
[339975240,1728245492111,-336.72,0.00016438,2]
[339975241,1728245492120,-1018.45,0.00016438,2]
[339975242,1728245492129,-336.72,0.00016438,2]
[339975243,1728245492140,-336.72,0.00016438,2]
[339975244,1728245492152,-336.72,0.00016438,2]
[339975245,1728245492165,-336.72,0.00016438,2]
[339975246,1728245492175,-646.49,0.00016438,2]
[339975247,1728245492186,-385.53814381,0.00016438,2]
[339975248,1728245492198,-500.0,0.00016438,2]
[339975249,1728245492210,-500.0,0.00016438,2]
[339975250,1728245492222,-151.0,0.00016438,2]
[339975251,1728245492234,-500.0,0.00016438,2]
[339975252,1728245492246,-500.0,0.00016438,2]
[339975253,1728245492256,-548.58,0.00016438,2]
[339975254,1728245492269,-500.0,0.00016438,2]
[339975255,1728245492280,-500.0,0.00016438,2]
[339975256,1728245492289,-642.06,0.00016438,2]
[339975257,1728245492299,-500.0,0.00016438,2]
[339975258,1728245492310,-500.0,0.00016438,2]
[339975259,1728245492320,-500.0,0.00016438,2]
[339975260,1728245492331,-732.29,0.00016438,2]
[339975261,1728245492343,-678.84,0.00016438,2]
[339975262,1728245492353,-744.55,0.00016438,2]
[339975263,1728245492364,-500.0,0.00016438,2]
[339975264,1728245492374,-500.0,0.00016438,2]
[339975265,1728245492385,-500.0,0.00016438,2]
[339975266,1728245492394,-610.927981,0.00016438,2]
[339975267,1728245492404,-500.0,0.00016438,2]
[339975268,1728245492415,-610.927981,0.00016438,2]
[339975269,1728245492426,-400.55570454,0.00016438,2]
[339975270,1728245492436,-500.0,0.00016438,2]
[339975271,1728245492446,-701.53,0.00016438,2]
[339975272,1728245492455,-977.67,0.00016438,2]
[339975273,1728245492465,-500.0,0.00016438,2]
[339975274,1728245492474,-500.0,0.00016438,2]
[339975275,1728245492485,-631.97,0.00016438,2]
[339975276,1728245492494,-151.0,0.00016438,2]
[339975277,1728245492505,-740.81,0.00016438,2]
[339975278,1728245492516,-566.27,0.00016438,2]
[339975279,1728245492527,-151.0,0.00016438,2]
[339975280,1728245492536,-1278.33,0.00016438,2]
[339975281,1728245492547,-500.0,0.00016438,2]
[339975282,1728245492559,-500.0,0.00016438,2]
[339975283,1728245492570,-711.1,0.00016438,2]
[339975284,1728245492580,-500.0,0.00016438,2]
[339975285,1728245492590,-500.0,0.00016438,2]
[339975286,1728245492600,-522.57549838,0.00016438,2]
[339975287,1728245492610,-500.0,0.00016438,2]
[339975288,1728245492620,-500.0,0.00016438,2]
[339975289,1728245492631,-500.0,0.00016438,2]
[339975290,1728245492643,-500.0,0.00016438,2]
[339975291,1728245492654,-1687.43,0.00016438,2]
[339975292,1728245492664,-500.0,0.00016438,2]
[339975293,1728245492674,-500.0,0.00016438,2]
[339975294,1728245492686,-733.55402,0.00016438,2]
[339975295,1728245492697,-500.0,0.00016438,2]
[339975296,1728245492708,-500.0,0.00016438,2]
[339975297,1728245492719,-733.55402,0.00016438,2]
[339975298,1728245492731,-559.4,0.00016438,2]
[339975299,1728245492743,-620.94,0.00016438,2]
[339975300,1728245492753,-570.64,0.00016438,2]
[339975301,1728245492764,-590.68,0.00016438,2]
[339975302,1728245492775,-525.69,0.00016438,2]
[339975303,1728245492785,-731.95,0.00016438,2]
[339975304,1728245492795,-363.63821577,0.00016438,2]
[339975305,1728245492806,-1541.796647,0.00016438,2]
[339975306,1728245492815,-1541.796647,0.00016438,2]
[339975307,1728245492826,-164.707236,0.00016438,2]
[339975308,1728245492838,-749.78,0.00016438,2]
[339975309,1728245492849,-500.0,0.00016438,2]
[339975310,1728245492859,-500.0,0.00016438,2]
[339975311,1728245492870,-164.707236,0.00016438,2]
[339975312,1728245492880,-500.0,0.00016438,2]
[339975313,1728245492891,-500.0,0.00016438,2]
[339975314,1728245492901,-500.0,0.00016438,2]
[339975315,1728245492912,-500.0,0.00016438,2]
[339975316,1728245492922,-850.21,0.00016438,2]
[339975317,1728245492932,-700.34,0.00016438,2]
[339975318,1728245492944,-616.70199,0.00016438,2]
[339975319,1728245492954,-793.43,0.00016438,2]
[339975320,1728245492964,-681.81,0.00016438,2]
[339975321,1728245492975,-500.0,0.00016438,2]
[339975322,1728245492986,-500.0,0.00016438,2]
[339975323,1728245492999,-3394.923181,0.00016438,2]
[339975324,1728245493010,-905.5,0.00016438,2]
[339975325,1728245493020,-618.07,0.00016438,2]
[339975326,1728245493032,-3394.923181,0.00016438,2]
[339975327,1728245493042,-232.89053,0.00016438,2]
[339975328,1728245493052,-500.0,0.00016438,2]
[339975329,1728245493062,-232.89053,0.00016438,2]
[339975330,1728245493073,-1004.36,0.00016438,2]
[339975331,1728245493083,-769.79,0.00016438,2]
[339975332,1728245493094,-556.25,0.00016438,2]
[339975333,1728245493106,-500.0,0.00016438,2]
[339975334,1728245493116,-704.99,0.00016438,2]
[339975335,1728245493126,-511.68,0.00016438,2]
[339975336,1728245493136,-500.0,0.00016438,2]
[339975337,1728245493146,-500.0,0.00016438,2]
[339975338,1728245493159,-500.0,0.00016438,2]
[339975339,1728245493170,-500.0,0.00016438,2]
[339975340,1728245493181,-716.88,0.00016438,2]
[339975341,1728245493192,-500.0,0.00016438,2]
[339975342,1728245493202,-500.0,0.00016438,2]
[339975343,1728245493212,-1213.0,0.00016438,2]
[339975344,1728245493222,-500.0,0.00016438,2]
[339975345,1728245493232,-502.96,0.00016438,2]
[339975346,1728245493242,-500.0,0.00016438,2]
[339975347,1728245493252,-396.110102,0.00016438,2]
[339975348,1728245493262,-396.110102,0.00016438,2]
[339975349,1728245493272,-500.0,0.00016438,2]
[339975350,1728245493282,-458.74443871,0.00016438,2]
[339975351,1728245493293,-255.019859,0.00016438,2]
[339975352,1728245493303,-500.0,0.00016438,2]
[339975353,1728245493314,-255.019859,0.00016438,2]
[339975354,1728245493324,-640.83,0.00016438,2]
[339975355,1728245493334,-799.58,0.00016438,2]
[339975356,1728245493344,-500.0,0.00016438,2]
[339975357,1728245493354,-500.0,0.00016438,2]
[339975358,1728245493364,-2198.44,0.00016438,2]
[339975359,1728245493374,-500.0,0.00016438,2]
[339975360,1728245493384,-348.967678,0.00016438,2]
[339975361,1728245493394,-701.74,0.00016438,2]
[339975362,1728245493404,-500.0,0.00016438,2]
[339975363,1728245493414,-348.967678,0.00016438,2]
[339975364,1728245493424,-500.0,0.00016438,2]
[339975365,1728245493434,-23220.06,0.00016438,2]
[339975366,1728245493445,-513.24,0.00016438,2]
[339975367,1728245493455,-500.0,0.00016438,2]
[339975368,1728245493464,-1825.72,0.00016438,2]
[339975369,1728245493474,-500.0,0.00016438,2]
[339975370,1728245493484,-3809.25,0.00016438,2]
[339975371,1728245493607,-689.01,0.00016438,2]
[339975372,1728245493620,-712.377784,0.00016438,2]
[339975373,1728245493630,-1068.37,0.00016438,2]
[339975374,1728245493642,-580.971183,0.00016438,2]
[339975375,1728245493653,-712.377784,0.00016438,2]
[339975376,1728245493665,-500.0,0.00016438,2]
[339975377,1728245493677,-580.971183,0.00016438,2]
[339975378,1728245493687,-151.0,0.00016438,2]
[339975379,1728245493697,-500.0,0.00016438,2]
[339975380,1728245493707,-500.0,0.00016438,2]
[339975381,1728245493717,-1019.82,0.00016438,2]
[339975382,1728245493727,-1687.94,0.00016438,2]
[339975383,1728245493737,-500.0,0.00016438,2]
[339975384,1728245493747,-500.0,0.00016438,2]
[339975385,1728245493758,-500.0,0.00016438,2]
[339975386,1728245493767,-611.72,0.00016438,2]
[339975387,1728245493777,-500.0,0.00016438,2]
[339975388,1728245493786,-500.0,0.00016438,2]
[339975389,1728245493797,-500.0,0.00016438,2]
[339975390,1728245493808,-564.15,0.00016438,2]
[339975391,1728245493818,-608.82,0.00016438,2]
[339975392,1728245493828,-605.81,0.00016438,2]
[339975393,1728245493839,-1003.97,0.00016438,2]
[339975394,1728245493850,-521.089365,0.00016438,2]
[339975395,1728245493859,-539.970348,0.00016438,2]
[339975396,1728245493870,-541.62,0.00016438,2]
[339975397,1728245493880,-589.17,0.00016438,2]
[339975398,1728245493892,-521.089365,0.00016438,2]
[339975399,1728245493902,-500.0,0.00016438,2]
[339975400,1728245493912,-539.970348,0.00016438,2]
[339975401,1728245493922,-500.0,0.00016438,2]
[339975402,1728245493933,-1166.46,0.00016438,2]
[339975403,1728245493943,-606.03,0.00016438,2]
[339975404,1728245493954,-578.55,0.00016438,2]
[339975405,1728245493964,-500.0,0.00016438,2]
[339975406,1728245493974,-526.31,0.00016438,2]
[339975407,1728245493984,-151.0,0.00016438,2]
[339975408,1728245493994,-500.0,0.00016438,2]
[339975409,1728245494004,-500.0,0.00016438,2]
[339975410,1728245494015,-725.991254,0.00016438,2]
[339975411,1728245494026,-565.22513999,0.00016438,2]
[339975412,1728245494037,-616.98,0.00016438,2]
[339975413,1728245494046,-725.991254,0.00016438,2]
[339975414,1728245494057,-500.0,0.00016438,2]
[339975415,1728245494066,-500.0,0.00016438,2]
[339975416,1728245494078,-500.0,0.00016438,2]
[339975417,1728245494088,-500.0,0.00016438,2]
[339975418,1728245494100,-500.0,0.00016438,2]
[339975419,1728245494110,-667.06,0.00016438,2]
[339975420,1728245494120,-500.0,0.00016438,2]
[339975421,1728245494130,-500.0,0.00016438,2]
[339975422,1728245494141,-529.178314,0.00016438,2]
[339975423,1728245494154,-500.0,0.00016438,2]
[339975424,1728245494165,-529.178314,0.00016438,2]
[339975425,1728245494176,-500.0,0.00016438,2]
[339975426,1728245494186,-500.0,0.00016438,2]
[339975427,1728245494198,-246.06675399,0.00016438,2]
[339975428,1728245494208,-253.43471076,0.00016438,2]
[339975429,1728245494219,-221.481726,0.00016438,2]
[339975430,1728245494231,-1194.140839,0.00016438,2]
[339975431,1728245494242,-1194.140839,0.00016438,2]
[339975432,1728245494253,-1854.38,0.00016438,2]
[339975433,1728245494263,-500.0,0.00016438,2]
[339975434,1728245494275,-151.0,0.00016438,2]
[339975435,1728245494284,-500.0,0.00016438,2]
[339975436,1728245494295,-500.0,0.00016438,2]
[339975437,1728245494305,-2983.12,0.00016438,2]
[339975438,1728245494315,-244.009806,0.00016438,2]
[339975439,1728245494325,-500.0,0.00016438,2]
[339975440,1728245494334,-244.009806,0.00016438,2]
[339975441,1728245494343,-667.95,0.00016438,2]
[339975442,1728245494354,-500.0,0.00016438,2]
[339975443,1728245494364,-830.07,0.00016438,2]
[339975444,1728245494374,-518.7,0.00016438,2]
[339975445,1728245494384,-500.0,0.00016438,2]
[339975446,1728245494394,-500.0,0.00016438,2]
[339975447,1728245494404,-500.0,0.00016438,2]
[339975448,1728245494414,-2165.89,0.00016438,2]
[339975449,1728245494424,-500.0,0.00016438,2]
[339975450,1728245494433,-151.0,0.00016438,2]
[339975451,1728245494442,-880.03,0.00016438,2]
[339975452,1728245494452,-3094.43,0.00016438,2]
[339975453,1728245494462,-701.44,0.00016438,2]
[339975454,1728245494472,-500.0,0.00016438,2]
[339975455,1728245494482,-4696.79,0.00016438,2]
[339975456,1728245494491,-1213.43,0.00016438,2]
[339975457,1728245494502,-500.0,0.00016438,2]
[339975458,1728245494511,-505.3,0.00016438,2]
[339975459,1728245494521,-500.0,0.00016438,2]
[339975460,1728245494531,-507.4,0.00016438,2]
[339975461,1728245494541,-500.0,0.00016438,2]
[339975462,1728245494551,-500.0,0.00016438,2]
[339975463,1728245494561,-151.0,0.00016438,2]
[339975464,1728245494571,-151.0,0.00016438,2]
[339975465,1728245494581,-151.0,0.00016438,2]
[339975466,1728245494591,-289.559981,0.00016438,2]
[339975467,1728245494602,-3000.0,0.0001644,2]
[339975468,1728245494612,-3000.0,0.0001645,2]
[339975469,1728245494621,-3000.0,0.0001646,2]
[339975470,1728245494631,-3000.0,0.0001647,2]
[339975471,1728245494640,-3000.0,0.0001648,2]
[339975472,1728245494650,-3000.0,0.0001649,2]
[339975473,1728245494660,-3000.0,0.000165,2]
[339975474,1728245494670,-3000.0,0.0001651,2]
[339975475,1728245494679,-3000.0,0.0001652,2]
[339975476,1728245494689,-3000.0,0.0001653,2]
[339975477,1728245494699,-232.10766,0.0001654,2]
[339975478,1728245494708,-151.0,0.0001654,2]
[339975479,1728245494719,-3000.0,0.0001654,2]
[339975480,1728245494729,-823.0,0.00016545,2]
[339975481,1728245494739,-3000.0,0.0001655,2]
[339975482,1728245494748,-3000.0,0.00016558,2]
[339975483,1728245494758,-178.980331,0.0001656,2]
[339975484,1728245494768,-3000.0,0.0001656,2]
[339975485,1728245494777,-3000.0,0.00016562,2]
[339975486,1728245494787,-2500.0,0.00016564,2]
[339975487,1728245494796,-3000.0,0.0001657,2]
[339975488,1728245494805,-3000.0,0.0001658,2]
[339975489,1728245494815,-3000.0,0.0001659,2]
[339975490,1728245494825,-3000.0,0.000166,2]
[339975491,1728245494835,-3000.0,0.0001661,2]
[339975492,1728245494845,-3000.0,0.0001662,2]
[339975493,1728245494856,-3000.0,0.0001663,2]
[339975494,1728245494866,-3422.399993,0.0001664,2]
[339975495,1728245494876,-3500.0,0.00016695,2]
[339975496,1728245494885,-3500.0,0.00016699,2]
[339975497,1728245494895,-4418.0,0.000167,2]
[339975498,1728245494905,-461.0,0.00016712,2]
[339975499,1728245494913,-811.88,0.00016712,2]
[339975500,1728245494923,-500.0,0.00016712,2]
[339975501,1728245494933,-538.21,0.00016712,2]
[339975502,1728245494943,-500.0,0.00016712,2]
[339975503,1728245494952,-463.99582403,0.00016712,2]
[339975504,1728245494962,-482.37002472,0.00016712,2]
[339975505,1728245494971,-690.31,0.00016712,2]
[339975506,1728245494980,-753.75,0.00016712,2]
[339975507,1728245494989,-500.0,0.00016712,2]
[339975508,1728245494998,-500.0,0.00016712,2]
[339975509,1728245495008,-560.51,0.00016712,2]
[339975510,1728245495017,-500.0,0.00016712,2]
[339975511,1728245495027,-693.21,0.00016712,2]
[339975512,1728245495037,-750.67,0.00016712,2]
[339975513,1728245495047,-624.79,0.00016712,2]
[339975514,1728245495056,-500.0,0.00016712,2]
[339975515,1728245495066,-500.0,0.00016712,2]
[339975516,1728245495076,-221.69508966,0.00016712,2]
[339975517,1728245495086,-644.63373328,0.00016712,2]
[339975518,1728245495097,-621.15,0.00016712,2]
[339975519,1728245495108,-573.68,0.00016712,2]
[339975520,1728245495118,-500.0,0.00016712,2]
[339975521,1728245495130,-500.0,0.00016712,2]
[339975522,1728245495141,-500.0,0.00016712,2]
[339975523,1728245495151,-500.0,0.00016712,2]
[339975524,1728245495163,-566.65,0.00016712,2]
[339975525,1728245495173,-500.0,0.00016712,2]
[339975526,1728245495183,-1154.19,0.00016712,2]
[339975527,1728245495193,-500.0,0.00016712,2]
[339975528,1728245495205,-511.18,0.00016712,2]
[339975529,1728245495215,-1179.38,0.00016712,2]
[339975530,1728245495227,-500.0,0.00016712,2]
[339975531,1728245495238,-751.93,0.00016712,2]
[339975532,1728245495249,-610.41156499,0.00016712,2]
[339975533,1728245495258,-500.0,0.00016712,2]
[339975534,1728245495268,-500.0,0.00016712,2]
[339975535,1728245495278,-734.54,0.00016712,2]
[339975536,1728245495287,-500.0,0.00016712,2]
[339975537,1728245495297,-500.0,0.00016712,2]
[339975538,1728245495306,-360.63101184,0.00016712,2]
[339975539,1728245495315,-500.0,0.00016712,2]
[339975540,1728245495325,-500.0,0.00016712,2]
[339975541,1728245495334,-782.03,0.00016712,2]
[339975542,1728245495344,-165.39549086,0.00016712,2]
[339975543,1728245495353,-500.0,0.00016712,2]
[339975544,1728245495362,-500.0,0.00016712,2]
[339975545,1728245495372,-600.57,0.00016712,2]
[339975546,1728245495382,-1034.12,0.00016712,2]
[339975547,1728245495391,-500.0,0.00016712,2]
[339975548,1728245495400,-500.0,0.00016712,2]
[339975549,1728245495509,-500.0,0.00016712,2]
[339975550,1728245495519,-500.0,0.00016712,2]
[339975551,1728245495529,-500.0,0.00016712,2]
[339975552,1728245495538,-500.0,0.00016712,2]
[339975553,1728245495548,-500.0,0.00016712,2]
[339975554,1728245495559,-567.02,0.00016712,2]
[339975555,1728245495569,-547.51,0.00016712,2]
[339975556,1728245495578,-620.41,0.00016712,2]
[339975557,1728245495588,-500.0,0.00016712,2]
[339975558,1728245495597,-500.0,0.00016712,2]
[339975559,1728245495608,-622.64,0.00016712,2]
[339975560,1728245495618,-500.0,0.00016712,2]
[339975561,1728245495628,-1766.09,0.00016712,2]
[339975562,1728245495638,-1018.45,0.00016712,2]
[339975563,1728245495648,-336.72,0.00016712,2]
[339975564,1728245495657,-646.49,0.00016712,2]
[339975565,1728245495667,-500.0,0.00016712,2]
[339975566,1728245495676,-500.0,0.00016712,2]
[339975567,1728245495687,-500.0,0.00016712,2]
[339975568,1728245495697,-233.93393442,0.00016712,2]
[339975569,1728245495706,-548.58,0.00016712,2]
[339975570,1728245495716,-500.0,0.00016712,2]
[339975571,1728245495726,-230.49617223,0.00016712,2]
[339975572,1728245495736,-642.06,0.00016712,2]
[339975573,1728245495745,-500.0,0.00016712,2]
[339975574,1728245495756,-500.0,0.00016712,2]
[339975575,1728245495767,-500.0,0.00016712,2]
[339975576,1728245495777,-732.29,0.00016712,2]
[339975577,1728245495787,-678.84,0.00016712,2]
[339975578,1728245495796,-744.55,0.00016712,2]
[339975579,1728245495807,-500.0,0.00016712,2]
[339975580,1728245495819,-500.0,0.00016712,2]
[339975581,1728245495829,-500.0,0.00016712,2]
[339975582,1728245495841,-500.0,0.00016712,2]
[339975583,1728245495852,-500.0,0.00016712,2]
[339975584,1728245495864,-701.53,0.00016712,2]
[339975585,1728245495875,-977.67,0.00016712,2]
[339975586,1728245495887,-500.0,0.00016712,2]
[339975587,1728245495899,-500.0,0.00016712,2]
[339975588,1728245495909,-631.97,0.00016712,2]
[339975589,1728245495922,-740.81,0.00016712,2]
[339975590,1728245495943,-566.27,0.00016712,2]
[339975591,1728245495957,-1278.33,0.00016712,2]
[339975592,1728245495969,-500.0,0.00016712,2]
[339975593,1728245495981,-500.0,0.00016712,2]
[339975594,1728245495993,-711.1,0.00016712,2]
[339975595,1728245496003,-500.0,0.00016712,2]
[339975596,1728245496014,-500.0,0.00016712,2]
[339975597,1728245496024,-500.0,0.00016712,2]
[339975598,1728245496034,-274.67185024,0.00016712,2]
[339975599,1728245496044,-500.0,0.00016712,2]
[339975600,1728245496054,-500.0,0.00016712,2]
[339975601,1728245496064,-1687.43,0.00016712,2]
[339975602,1728245496074,-500.0,0.00016712,2]
[339975603,1728245496084,-500.0,0.00016712,2]
[339975604,1728245496094,-733.55402,0.00016712,2]
[339975605,1728245496105,-500.0,0.00016712,2]
[339975606,1728245496115,-500.0,0.00016712,2]
[339975607,1728245496125,-733.55402,0.00016712,2]